fUSD/lending_fUSD_20240624
["ID","MTS","AMOUNT","RATE_DAILY","PERIOD"]
[330338932,1719263438856,-450.94606924,0.00021208,2]
[330338934,1719263438866,-450.94606924,0.0002142,2]
[330338937,1719263438875,-450.94606924,0.0002142,2]
[330338939,1719263438884,-450.94606924,0.0002142,2]
[330338941,1719263438894,-678.36292703,0.00021858,2]
[330338943,1719263438904,-2016.28833189,0.00021937,2]
[330338945,1719263438914,-319.60079117,0.00022626,7]
[330338947,1719263438926,-1080.95280517,0.00022626,7]
[330338949,1719263438935,-1895.04719483,0.0002299,7]
[330338951,1719263438946,-363.3164253,0.0002299,7]
[330338968,1719263439066,-4460.27583163,0.0002299,7]
[330338970,1719263439078,-12126.62771641,0.0002299,7]
[330338973,1719263439091,-6276.31584772,0.0002299,7]
[330339078,1719263440300,-450.94606924,0.0002142,2]
[330339080,1719263440310,-450.94606924,0.00021634,2]
[330339082,1719263440320,-450.94606924,0.00021635,2]
[330339084,1719263440329,-450.94606924,0.00021635,2]
[330339086,1719263440339,-450.94606924,0.00021635,2]
[330339088,1719263440349,-450.94606924,0.00021635,2]
[330339090,1719263440359,-806.0,0.00022634,2]
[330339094,1719263440385,-18991.20625874,0.0002299,7]
[330339096,1719263440402,-235924.08276469,0.0002299,7]
[330339098,1719263440412,-37950.09027245,0.0002299,5]
[330339100,1719263440424,-361.32,0.0002299,5]
[330339103,1719263440435,-432.917,0.0002299,5]
[330339105,1719263440446,-489.92583295,0.0002299,5]
[330339123,1719263440615,-450.94606924,0.0002168,2]
[330339126,1719263440626,-32332.34669367,0.0002299,5]
[330339128,1719263440638,-941.05466901,0.0002299,5]
[330339130,1719263440652,-1950.0,0.0002299,5]
[330339132,1719263440664,-4661.7770805,0.0002299,5]
[330339134,1719263440676,-17844.04418934,0.0002299,5]
[330339158,1719263440910,-450.94606924,0.0002179,2]
[330339160,1719263440920,-123.67089078,0.0002299,5]
[330339163,1719263440932,-140058.51858493,0.0002299,5]
[330339390,1719263443106,-450.94606924,0.00021808,2]
[330339394,1719263443116,-450.94606924,0.00021869,2]
[330339396,1719263443126,-291.45286152,0.00021927,2]
[330339399,1719263443138,-159.49320772,0.00021927,2]
[330339401,1719263443147,-450.94606924,0.0002197,2]
[330339404,1719263443157,-426.62663693,0.00021979,2]
[330339442,1719263443378,-24.31943231,0.00021979,2]
[330339445,1719263443388,-450.94606924,0.0002199,2]
[330339447,1719263443400,-450.94606924,0.00022046,2]
[330339450,1719263443411,-450.94606924,0.00022053,2]
[330339453,1719263443421,-450.94606924,0.00022071,2]
[330339456,1719263443430,-450.94606924,0.00022071,2]
[330339459,1719263443439,-38.65175214,0.0002209,2]
[330339462,1719263443454,-412.2943171,0.0002209,2]
[330339465,1719263443464,-452.84939676,0.00022989,2]
[330339467,1719263443474,-1241.33154204,0.0002299,5]
[330339470,1719263443483,-135893.5247441,0.0002299,5]
[330339594,1719263444400,-507.53028692,0.0002299,5]
[330339598,1719263444487,-450.94606924,0.0002209,2]
[330339599,1719263444496,-21880.05402655,0.0002299,5]
[330339601,1719263444509,-517.99906392,0.0002299,5]
[330339614,1719263446078,-281.80217163,0.00020529,2]
[330339616,1719263446090,-365.13050388,0.00020529,2]
[330339617,1719263446100,-450.94606924,0.00022124,2]
[330339618,1719263446110,-450.94606924,0.00022145,2]
[330339619,1719263446120,-450.94606924,0.00022175,2]
[330339620,1719263446130,-450.94606924,0.00022244,2]
[330339621,1719263446140,-450.94606924,0.00022244,2]
[330339622,1719263446149,-450.94606924,0.00022244,2]
[330339623,1719263446160,-450.94606924,0.00022285,2]
[330339624,1719263446169,-323.97615477,0.00022305,2]
[330339625,1719263446181,-126.96991447,0.00022305,2]
[330339626,1719263446191,-450.94606924,0.00022308,2]
[330339627,1719263446201,-450.94606924,0.00022379,2]
[330339628,1719263446211,-1133.49801676,0.0002253,2]
[330339629,1719263446221,-4341.47141766,0.0002299,5]
[330339630,1719263446233,-806.75485235,0.0002299,5]
[330339631,1719263446245,-8931.0,0.0002299,5]
[330339632,1719263446256,-14913.0,0.0002299,5]
[330339633,1719263446337,-450.94606924,0.00022403,2]
[330339634,1719263446347,-695.93797046,0.0002299,5]
[330339635,1719263446359,-297678.26528311,0.0002299,5]
[330339636,1719263446379,-747.2575192,0.0002299,5]
[330339637,1719263446393,-1267.29905628,0.0002299,5]
[330339638,1719263446407,-2874.13903805,0.0002299,5]
[330339653,1719263446622,-450.94606924,0.00022408,2]
[330339655,1719263446632,-416.05202664,0.0002299,5]
[330339657,1719263446643,-7137.84737199,0.0002299,5]
[330339659,1719263446657,-422.91126348,0.0002299,5]
[330340155,1719264085978,-167.09,0.00021513,30]
[330340156,1719264162258,-871.0858472,0.00024,30]
[330340158,1719264173601,-1082.12623623,0.00022989,10]
[330340159,1719264173637,-320.0,0.00023,10]
[330340160,1719264173660,-1600.0,0.00023,10]
[330340161,1719264173695,-1900.0,0.00024,10]
[330340162,1719264173718,-5097.87376377,0.00024,10]
[330340193,1719264632517,-500.0,0.000192,7]
[330340194,1719264632527,-150.0,0.00019451,2]
[330340195,1719264632536,-349.6,0.00019535,2]
[330340196,1719264632548,-47.16,0.00019535,2]
[330340197,1719264632557,-499.99,0.00019706,2]
[330340198,1719264632566,-165.023,0.00020906,2]
[330340199,1719264632575,-287.7276,0.00021069,2]
[330340200,1719264632586,-1000.3932,0.00021069,2]
[330340201,1719264632598,-600.0,0.00021069,2]
[330340202,1719264632609,-3491.84839912,0.00021069,2]
[330340203,1719264632619,-210.0,0.00021396,2]
[330340204,1719264632629,-250.0,0.00021481,2]
[330340205,1719264632638,-246.58,0.00021541,2]
[330340206,1719264632647,-193.21,0.00021544,2]
[330340207,1719264632657,-160.05472274,0.00021552,2]
[330340208,1719264632668,-250.0,0.00021576,2]
[330340209,1719264632677,-1000.0,0.00021579,2]
[330340210,1719264632686,-465.85,0.00021644,2]
[330340211,1719264632695,-154.92,0.00021644,2]
[330340212,1719264632705,-396.76,0.00021799,2]
[330340213,1719264632714,-5594.31883355,0.00021879,2]
[330340214,1719264632724,-413.9,0.00021918,2]
[330340215,1719264632735,-153.09,0.00021918,2]
[330340216,1719264632754,-258.61409544,0.00021999,2]
[330340217,1719264632763,-225.85563566,0.00022006,2]
[330340218,1719264632776,-154.95068439,0.00022006,2]
[330340219,1719264632787,-165.64395698,0.00022009,2]
[330340220,1719264632796,-150.03030751,0.00022015,2]
[330340221,1719264632805,-424.8,0.00022027,2]
[330340222,1719264632816,-580.68,0.00022027,2]
[330340223,1719264632827,-563.49496071,0.0002207,2]
[330340224,1719264632837,-161.57197413,0.00022111,2]
[330340225,1719264632846,-918.50730339,0.0002216,2]
[330340226,1719264632855,-2775.16920024,0.0002218,2]
[330340227,1719264632867,-247.6478818,0.0002218,2]
[330340228,1719264632877,-701.51113134,0.00022181,2]
[330340229,1719264632888,-3682.03172911,0.00022181,2]
[330340230,1719264632899,-448.74875887,0.00022181,2]
[330340231,1719264632911,-167.70838068,0.00022181,2]
[330340232,1719264632922,-190.41718218,0.00022183,2]
[330340233,1719264632931,-166.66666666,0.00022249,2]
[330340234,1719264632940,-90.4621844,0.0002227,2]
[330340235,1719264632952,-62.0278156,0.0002227,2]
[330340236,1719264632962,-386.29636853,0.00022271,2]
[330340237,1719264632971,-170.87011475,0.00022282,2]
[330340238,1719264632980,-115.41320322,0.00022287,2]
[330340239,1719264632992,-50.23075376,0.00022287,2]
[330340240,1719264633003,-154.29479996,0.00022445,2]
[330340241,1719264633013,-94.48944628,0.00022471,2]
[330340242,1719264633024,-1095.19142246,0.00022471,2]
[330340243,1719264633036,-2332.67160565,0.00022471,2]
[330340244,1719264633841,-404.7199998,0.00022471,2]
[330340245,1719264633853,-72.58135138,0.00022471,2]
[330340246,1719264633862,-918.50730339,0.00022496,2]
[330340247,1719264633872,-2117.15454664,0.0002253,2]
[330340248,1719264633882,-1065.87442764,0.0002253,2]
[330340249,1719264633891,-1011.68700016,0.0002253,2]
[330340250,1719264633901,-166.66666667,0.00022557,2]
[330340251,1719264633910,-535.69741847,0.00022564,2]
[330340252,1719264633920,-270.98176171,0.00022603,2]
[330340253,1719264633929,-166.66666666,0.00022604,2]
[330340254,1719264633939,-154.29479996,0.00022615,2]
[330340255,1719264633948,-455.87888116,0.00022653,2]
[330340256,1719264633958,-725.68192109,0.00022724,2]
[330340257,1719264633967,-544.18474463,0.00022739,2]
[330340258,1719264633976,-563.49496071,0.0002274,2]
[330340259,1719264633985,-154.29479996,0.00022741,2]
[330340260,1719264633995,-213.71264132,0.00022741,2]
[330340261,1719264634006,-483.71393226,0.00022741,2]
[330340262,1719264634019,-435.54807889,0.00022741,2]
[330340263,1719264634029,-638.38438502,0.00022741,2]
[330340264,1719264634039,-187.96812151,0.00022742,2]
[330340265,1719264634048,-99.55217695,0.00022742,2]
[330340266,1719264634059,-114.06824349,0.00022742,2]
[330340267,1719264634070,-165.64395698,0.00022745,2]
[330340268,1719264634080,-159.4371568,0.00022805,2]
[330340269,1719264634089,-500.0,0.00022805,2]
[330340270,1719264634099,-103.01836273,0.00022805,2]
[330340271,1719264634111,-255.97559429,0.00022805,2]
[330340272,1719264634123,-141.00604298,0.00022805,2]
[330340273,1719264634135,-486.07395709,0.00022806,2]
[330340274,1719264634147,-13.92604291,0.00022806,2]
[330340275,1719264634157,-200.0,0.00022806,2]
[330340276,1719264634168,-190.80395696,0.00022818,2]
[330340277,1719264634179,-109.19604304,0.00022818,2]
[330340278,1719264634188,-282.70545696,0.00022877,2]
[330340279,1719264634200,-26.86454304,0.00022877,2]
[330340280,1719264634210,-517.15545696,0.0002288,2]
[330340281,1719264634222,-700.0,0.0002288,2]
[330340286,1719264638790,-585.39600904,0.00022179,2]
[330340295,1719264639218,-614.60701448,0.00022179,2]
[330340297,1719264639230,-722.67910428,0.00022179,2]
[330340299,1719264639242,-3077.3178722,0.00022179,2]
[330340301,1719264639254,-1935.75804382,0.00022419,2]
[330340303,1719264639264,-2009.30662841,0.00022805,2]
[330340305,1719264639277,-6.98170348,0.00022805,2]
[330340307,1719264639287,-1806.78624304,0.0002288,2]
[330340309,1719264639297,-213.03593627,0.0002289,4]
[330340311,1719264639308,-315.95885669,0.0002289,2]
[330340313,1719264639318,-587.72466878,0.0002289,3]
[330340315,1719264639329,-1287.64908378,0.00022898,7]
[330340317,1719264639339,-430.54118397,0.00022899,2]
[330340319,1719264639349,-138.57156362,0.00022899,2]
[330340321,1719264639362,-291.96962035,0.00022899,2]
[330340323,1719264639371,-390.0,0.000229,2]
[330340325,1719264639381,-69.70637965,0.00022902,2]
[330340328,1719264639395,-526.05982058,0.00022902,2]
[330340330,1719264639405,-196.43535554,0.00022902,2]
[330340332,1719264639415,-176.45216287,0.00022902,2]
[330340334,1719264639427,-157.03962653,0.00022903,2]
[330340337,1719264639444,-3842.61419904,0.00022903,2]
[330340338,1719264639454,-254.59873041,0.0002295,2]
[330340341,1719264639464,-1285.71256166,0.00022951,2]
[330340343,1719264639474,-425.67660857,0.00022953,2]
[330340345,1719264639485,-1271.88800036,0.00022953,2]
[330340347,1719264639495,-281.86893919,0.00022954,2]
[330340349,1719264639506,-155.0,0.00022954,2]
[330340351,1719264639515,-154.28020165,0.00022955,2]
[330340353,1719264639526,-370.06369904,0.00022955,2]
[330340355,1719264639537,-725.68192109,0.00022962,2]
[330340357,1719264639547,-225.85563566,0.00022965,2]
[330340359,1719264639558,-467.45,0.0002298,3]
[330340361,1719264639568,-19487.0616458,0.0002298,3]
[330340363,1719264639578,-193.95235988,0.0002298,2]
[330340365,1719264639588,-193.95235988,0.0002298,2]
[330340367,1719264639599,-193.95235988,0.0002298,2]
[330340369,1719264639610,-365.2873899,0.00022989,2]
[330340371,1719264639620,-675.0,0.0002299,2]
[330340373,1719264639631,-620.66577102,0.0002299,5]
[330340375,1719264639641,-55181.53761854,0.0002299,7]
[330340377,1719264639654,-9846.52340112,0.0002299,7]
[330340379,1719264639664,-286.98719561,0.0002299,5]
[330340382,1719264639676,-362221.49064352,0.0002299,5]
[330340384,1719264639688,-2566.68983075,0.0002299,5]
[330340386,1719264639701,-3327.898,0.0002299,5]
[330340388,1719264639713,-9042.62188768,0.0002299,5]
[330340458,1719264640420,-193.95235988,0.0002298,2]
[330340460,1719264640433,-170.56432839,0.0002298,2]
[330340463,1719264640447,-23.38803149,0.0002298,2]
[330340465,1719264640456,-193.95235988,0.0002298,2]
[330340467,1719264640467,-193.95235988,0.0002298,2]
[330340469,1719264640477,-295.73249287,0.0002299,5]
[330340471,1719264640490,-477.34902354,0.0002299,5]
[330340473,1719264640503,-442.29880524,0.0002299,5]
[330340507,1719264640824,-193.95235988,0.0002298,2]
[330340509,1719264640837,-68.84441076,0.0002298,2]
[330340511,1719264640851,-125.10794912,0.0002298,2]
[330340513,1719264640861,-636.62896853,0.0002299,5]
[330340516,1719264640873,-2414.77663266,0.0002299,5]
[330340518,1719264640884,-658.39,0.0002299,5]
[330340520,1719264640895,-4120.41378207,0.0002299,5]
[330340522,1719264640907,-1129.499998,0.0002299,5]
[330340547,1719264641137,-193.95235988,0.0002298,2]
[330340549,1719264641147,-193.95235988,0.0002298,2]
[330340551,1719264641156,-4179.38256283,0.0002299,5]
[330340882,1719264644646,-349.229994,0.0002289,3]
[330341095,1719264646627,-238.49467479,0.0002289,3]
[330341097,1719264646638,-370.06369904,0.00022954,2]
[330341099,1719264646647,-193.95235988,0.0002298,2]
[330341101,1719264646656,-30.01633439,0.0002298,2]
[330341104,1719264646668,-163.93602549,0.0002298,2]
[330341106,1719264646677,-193.95235988,0.0002298,2]
[330341108,1719264646687,-193.95235988,0.0002298,2]
[330341110,1719264646696,-193.95235988,0.0002298,2]
[330341112,1719264646705,-193.95235988,0.0002298,2]
[330341114,1719264646715,-193.95235988,0.0002298,2]
[330341115,1719264646725,-193.95235988,0.0002298,2]
[330341118,1719264646735,-193.95235988,0.0002298,2]
[330341119,1719264646747,-193.95235988,0.0002298,2]
[330341121,1719264646760,-193.95235988,0.0002298,2]
[330341123,1719264646770,-193.95235988,0.0002298,2]
[330341125,1719264646779,-193.95235988,0.0002298,2]
[330341127,1719264646788,-193.95235988,0.0002298,2]
[330341129,1719264646798,-193.95235988,0.0002298,2]
[330341131,1719264646808,-193.95235988,0.0002298,2]
[330341133,1719264646818,-193.95235988,0.0002298,2]
[330341135,1719264646829,-193.95235988,0.0002298,2]
[330341138,1719264646843,-193.95235988,0.0002298,2]
[330341140,1719264646852,-193.95235988,0.0002298,2]
[330341142,1719264646863,-193.95235988,0.0002298,2]
[330341144,1719264646872,-1761.05265544,0.0002299,5]
[330341146,1719264646884,-1788.239116,0.0002299,5]
[330341148,1719264646896,-2414.98674344,0.0002299,5]
[330341150,1719264646908,-3335.87005756,0.0002299,5]
[330341152,1719264646919,-1497.16446795,0.0002299,5]
[330341155,1719264646931,-13690.82341382,0.0002299,5]
[330341157,1719264646942,-6723.95799994,0.0002299,5]
[330341159,1719264646954,-3404.49953242,0.0002299,5]
[330341174,1719264647096,-651.1501063,0.0002299,5]
[330341176,1719264647107,-301.33416204,0.0002299,5]
[330341178,1719264647118,-584.74,0.0002299,5]
[330341315,1719264824342,1897.0,0.00014,2]
[330341316,1719264825734,167.09,0.00021611,30]
[330341337,1719265363610,167.09,0.00020499,30]
[330341338,1719265439282,-485.52390305,0.0001251,2]
[330341339,1719265439304,-1500.06164362,0.0001389,2]
[330341340,1719265439326,-4514.41445333,0.0001399,2]
[330341341,1719265453983,-1444.53017569,0.0001399,2]
[330341342,1719265454008,-150.0,0.00013999,2]
[330341343,1719265454032,-150.0,0.00013999,2]
[330341344,1719265454061,-255.46982431,0.00013999,2]
[330341345,1719265474004,-44.53017569,0.00013999,2]
[330341346,1719265474031,-23955.46982431,0.00014,2]
[330341347,1719265494161,3653.0,0.00025,60]
[330341349,1719265549119,-150.0,0.00013999,2]
[330341350,1719265549142,-905.24774384,0.00014,2]
[330341353,1719265629112,-300.0,0.00013999,2]
[330341354,1719265629139,-1819.06040042,0.00014,2]
[330341359,1719265649293,-229.48219589,0.000139,2]
[330341360,1719265649319,-3517.622533,0.00014,2]
[330341369,1719265832951,-603.50800002,0.000138,2]
[330341372,1719265832963,-253.12656111,0.000138,2]
[330341374,1719265832975,-482.11219619,0.000138,2]
[330341376,1719265832984,-161.51576947,0.000139,2]
[330341378,1719265832993,-377.77289199,0.000139,2]
[330341380,1719265833003,-150.0,0.00013999,2]
[330341382,1719265833012,-300.0,0.00013999,2]
[330341384,1719265833022,-10764.59914235,0.00014,2]
[330341386,1719265833034,-584.59550704,0.00014,2]
[330341388,1719265833046,-452.75892829,0.00014,2]
[330341392,1719265838812,-900.0518751,0.00014,2]
[330341394,1719265838824,-34131.10031595,0.00014,2]
[330341396,1719265839271,-5999.8,0.00014,2]
[330341399,1719265839284,-2446.97467706,0.00014,2]
[330341402,1719265839296,-3262.26619703,0.00014,2]
[330341406,1719265839309,-172542.36546272,0.00014,2]
[330341418,1719265839406,-642.09206615,0.00014,2]
[330341420,1719265839418,-1138.18072319,0.00014,2]
[330341424,1719265839440,-1550.22339029,0.00014,2]
[330341426,1719265839452,-12457.34783676,0.00014,2]
[330341428,1719265839464,-10219.39772,0.00014,2]
[330341520,1719265841169,-253.4388,0.00013899,2]
[330341521,1719265841178,-14748.47342307,0.00014,2]
[330341522,1719265841190,-2678.58367401,0.00014,2]
[330341657,1719265845329,-792.31207211,0.000138,2]
[330341658,1719265845339,-12578.08968427,0.00014,2]
[330341659,1719265845351,-6849.713558,0.00014,2]
[330341660,1719265845363,-33896.16175551,0.00014,2]
[330341667,1719265846865,-995.94009484,0.00014,2]
[330341670,1719265847202,-1200.57636,0.00014,2]
[330341671,1719265847216,-1500.8577638,0.00014,2]
[330341672,1719265847228,-546.47514523,0.00014,2]
[330341673,1719265847324,-92.01435,0.00014,2]
[330341675,1719266519090,167.09,0.00018849,30]
[330341680,1719266757176,-994.27566342,0.00013482,2]
[330341681,1719266832507,-1092.41284191,0.00013347,2]
[330341682,1719266832534,-200.46437568,0.00013698,2]
[330341683,1719266832557,-430.54118397,0.00013744,2]
[330341684,1719266832583,-968.88961,0.0001386,2]
[330341685,1719266832605,-150.0,0.00013898,2]
[330341686,1719266832628,-300.0,0.00013898,2]
[330341687,1719266832648,-6668.50756996,0.00013899,2]
[330341704,1719267032089,-178.4933045,0.00013699,2]
[330341706,1719267032098,-1594.83404421,0.00013799,2]
[330341707,1719267032110,-315.7795185,0.00013799,2]
[330341708,1719267032121,-696.77431602,0.00013799,2]
[330341709,1719267032133,-765.29022052,0.00013799,2]
[330341711,1719267032144,-782.14758834,0.00013799,2]
[330341713,1719267032154,-9233.83363004,0.00013899,2]
[330341715,1719267032163,-552.49402152,0.00013899,2]
[330341717,1719267032172,-8194.82055258,0.0001399,2]
[330341719,1719267032181,-17343.27446209,0.00014,2]
[330341721,1719267032490,-448.12958754,0.00014,2]
[330341723,1719267032501,-7450.39419363,0.00014,2]
[330341726,1719267032518,-650.01339646,0.00014,2]
[330341727,1719267032530,-2000.0,0.00014,2]
[330341728,1719267032541,-689.30241408,0.00014,2]
[330341731,1719267039150,-6007.29999998,0.00014,2]
[330341732,1719267039628,-24015.2005813,0.00014,2]
[330341734,1719267039641,-977.69249947,0.00014,2]
[330341735,1719267039654,-335.76750053,0.00014,2]
[330341737,1719267040024,-3153.48720007,0.00014,2]
[330341739,1719267040036,-3776.76316371,0.00014,2]
[330341741,1719267040048,-1096.04159675,0.00014,2]
[330341743,1719267040061,-4341.68845553,0.00014,2]
[330341744,1719267040074,-33330.72678401,0.00014,2]
[330341745,1719267040086,-2137.01187072,0.00014,2]
[330341746,1719267040097,-2495.58714316,0.00014,2]
[330341747,1719267040110,-1011.59816096,0.00014,2]
[330341748,1719267040410,-987.22897559,0.00014,2]
[330341750,1719267040422,-364.16538715,0.00014,2]
[330341751,1719267040434,-11369.06791851,0.00014,2]
[330341795,1719267044982,-12387.60499801,0.00014,2]
[330341796,1719267044994,-1013.27421864,0.00014,2]
[330341797,1719267045005,-13247.78268,0.00014,2]
[330341798,1719267045018,-806.1100004,0.00014,2]
[330341799,1719267045030,-899.58260577,0.00014,2]
[330341800,1719267045042,-888.50000003,0.00014,2]
[330341801,1719267045053,-33340.24392775,0.00014,2]
[330341802,1719267045064,-407.61700884,0.00014,2]
[330341803,1719267045356,-1377.3667903,0.00014,2]
[330341804,1719267045367,-397.66172814,0.00014,2]
[330341805,1719267045379,-567.80750163,0.00014,2]
[330341817,1719267048273,-740.20671764,0.00014,2]
[330341818,1719267048285,-389.63124367,0.00014,2]
[330341819,1719267048296,-6254.49072629,0.00014,2]
[330341820,1719267048308,-275.919,0.00014,2]
[330341821,1719267048320,-14166.94,0.00014,2]
[330341822,1719267048333,-1270.47808865,0.00014,2]
[330341823,1719267048346,-1484.08056656,0.00014,2]
[330341824,1719267048358,-47562.5242419,0.00014,2]
[330341825,1719267048632,-640.7472672,0.00014,2]
[330341828,1719267431797,157.062507,0.00025,63]
[330341829,1719267436419,157.062507,0.00025,64]
[330341830,1719267441040,157.062507,0.00025,65]
[330341831,1719267451828,157.062507,0.00025,68]
[330341832,1719267455883,157.062507,0.00025,69]
[330341833,1719267460289,157.062507,0.00025,70]
[330341889,1719267931821,1235.0,0.00025,60]
[330341891,1719268152469,-421.10018212,0.00012154,2]
[330341892,1719268173471,-0.60981788,0.00012154,2]
[330341900,1719268232336,-429.8742519,0.00013504,2]
[330341902,1719268233645,-198.1157481,0.00013504,2]
[330341903,1719268233655,-852.11958267,0.00013529,2]
[330341904,1719268233666,-992.484,0.00013529,2]
[330341905,1719268233678,-944.17145642,0.00013529,2]
[330341906,1719268233688,-102.82854358,0.00013552,2]
[330341907,1719268233701,-67.31145642,0.00013552,2]
[330341908,1719268233710,-183.22,0.00013629,2]
[330341909,1719268233719,-232.24440102,0.00013663,2]
[330341910,1719268233731,-17.75559898,0.00013663,2]
[330341911,1719268233743,-161.80283712,0.000137,2]
[330341912,1719268233752,-3585.79,0.00013732,2]
[330341913,1719268233762,-1307.40801,0.0001386,2]
[330341914,1719268233771,-150.0,0.00013919,2]
[330341915,1719268233781,-175.4405116,0.0001392,2]
[330341916,1719268233793,-3958.65,0.0001392,2]
[330341917,1719268233801,-848.18,0.0001392,2]
[330341918,1719268233810,-1723.61,0.0001392,2]
[330341919,1719268233819,-879.73,0.0001392,2]
[330341920,1719268233828,-3824.06,0.0001392,2]
[330341921,1719268233838,-158.9,0.0001394,2]
[330341922,1719268233847,-315.17964069,0.00013982,2]
[330341923,1719268233857,-190.4783836,0.00013982,2]
[330341924,1719268233867,-150.99,0.0001399,2]
[330341925,1719268233877,-2676.82821218,0.0001399,2]
[330341926,1719268233887,-910.34403493,0.00013999,2]
[330341927,1719268233897,-53190.35802754,0.00014,2]
[330341928,1719268233910,-745756.69822403,0.00014,2]
[330341929,1719268233920,-167.55469044,0.00014082,2]
[330341930,1719268233930,-158.9,0.00014182,2]
[330341931,1719268233939,-246.13,0.00014232,2]
[330341932,1719268233949,-250.0,0.00014291,2]
[330341933,1719268233958,-421.71,0.00014418,2]
[330341934,1719268233968,-233.93,0.0001442,2]
[330341935,1719268233982,-158.9,0.00014424,2]
[330341936,1719268233991,-10000.0,0.00014565,2]
[330341937,1719268234001,-1604.848858,0.00014646,2]
[330341938,1719268234011,-158.9,0.00014667,2]
[330341939,1719268234020,-500.0,0.00014674,2]
[330341940,1719268234031,-1383.53,0.00014878,2]
[330341941,1719268234043,-176.54,0.00014893,2]
[330341942,1719268234052,-1001.6,0.00014899,2]
[330341943,1719268234062,-190.4783836,0.000149,2]
[330341944,1719268234073,-175.44051155,0.00014917,2]
[330341945,1719268234083,-178.13350205,0.00014983,2]
[330341946,1719268234092,-920.23820879,0.00014984,2]
[330341947,1719268234101,-334020.56754104,0.00015,2]
[330341957,1719268234244,-800.0,0.00015,2]
[330341959,1719268234256,-19694.42804996,0.00015,2]
[330341974,1719268238281,-7003.67044969,0.00015,2]
[330341975,1719268238294,-3118.452,0.00015,2]
[330341976,1719268238308,-1900.0,0.00015,2]
[330341977,1719268238320,-4795.42269386,0.00015,2]
[330341989,1719268238747,-30041.5417348,0.00015,2]
[330341990,1719268240639,-3210.81251125,0.00015,2]
[330342004,1719268243494,-392.29490377,0.00015,2]
[330342024,1719268244275,-482.00237009,0.00015,2]
[330342025,1719268244441,-569.71411984,0.00015,2]
[330342026,1719268244454,-636.87818,0.00015,2]
[330342027,1719268244465,-2396.5336603,0.00015,2]
[330342028,1719268244477,-669.13794876,0.00015,2]
[330342029,1719268244488,-1564.09762728,0.00015,2]
[330342031,1719268246603,-18100.3284,0.00015,2]
[330342034,1719268249039,547.32673675,0.00012154,2]
[330342035,1719268260215,205.64517353,0.00012154,2]
[330342041,1719268470858,280.18,0.0002298,30]
[330342042,1719268471906,150.5,0.0002298,30]
[330342043,1719268472570,150.5,0.0002297,30]
[330342044,1719268472998,284.0,0.0002296,30]
[330342049,1719268591420,150.5,0.00022868,30]
[330342050,1719268592320,150.5,0.00022858,30]
[330342051,1719268592590,284.0,0.00022848,30]
[330342054,1719268710419,150.5,0.0001499,30]
[330342055,1719268710460,150.5,0.0001499,30]
[330342056,1719268710646,150.5,0.0001498,30]
[330342057,1719268710893,150.5,0.0001499,30]
[330342058,1719268711179,150.5,0.0001497,30]
[330342059,1719268711694,150.5,0.0002234,30]
[330342060,1719268712264,218.12,0.0002233,30]
[330342061,1719268830913,150.5,0.0001499,30]
[330342062,1719269141361,-254.0,0.00011099,2]
[330342063,1719269141386,-795.15557166,0.000111,2]
[330342064,1719269233138,-182.10941277,0.00011195,2]
[330342065,1719269233162,-86.12268622,0.000112,2]
[330342066,1719269251261,-3747.12221504,0.000112,2]
[330342067,1719269253113,-2045.59045936,0.000112,2]
[330342068,1719269253134,-73.52380804,0.00011295,2]
[330342070,1719269346197,-300.01248765,0.00011295,2]
[330342071,1719269349131,-46.25370431,0.00011295,2]
[330342072,1719269349153,-361.82,0.00012851,2]
[330342073,1719269349175,-8392.18,0.00012912,2]
[330342074,1719269349196,-250.0,0.00012922,2]
[330342075,1719269349218,-150.0,0.00012979,2]
[330342076,1719269349242,-250.0,0.00013156,2]
[330342077,1719269349265,-150.0,0.00013287,2]
[330342078,1719269349287,-300.0,0.00013287,2]
[330342079,1719269349308,-150.0,0.00013288,2]
[330342080,1719269349330,-3649.12,0.00013319,2]